fUST/lending_fUST_20260114
["ID","MTS","AMOUNT","RATE_DAILY","PERIOD"]
[401710574,1768341793059,-500.0,0.00012875,2]
[401710575,1768341793090,-500.0,0.00012875,2]
[401710576,1768341793120,-500.0,0.00012875,2]
[401710577,1768341793152,-500.0,0.00012875,2]
[401710578,1768341793184,-500.0,0.00012875,2]
[401710579,1768341793216,-38.39910512,0.00012875,2]
[401710580,1768341796133,-461.60089488,0.00012875,2]
[401710581,1768341796165,-500.0,0.00012875,2]
[401710582,1768341796196,-500.0,0.00012875,2]
[401710583,1768341796226,-500.0,0.00012875,2]
[401710584,1768341796259,-500.0,0.00012875,2]
[401710585,1768341796290,-330.2695752,0.00012875,2]
[401710586,1768341796323,-500.0,0.00012875,2]
[401710587,1768341796355,-500.0,0.00012875,2]
[401710588,1768341796386,-500.0,0.00012875,2]
[401710589,1768341796418,-500.0,0.00012875,2]
[401710590,1768341799006,-500.0,0.00012875,2]
[401710591,1768341799040,-500.0,0.00012875,2]
[401710592,1768341799073,-500.0,0.00012875,2]
[401710593,1768341799107,-500.0,0.00012875,2]
[401710594,1768341799140,-500.0,0.00012875,2]
[401710595,1768341799173,-500.0,0.00012875,2]
[401710596,1768341799314,-500.0,0.00012875,2]
[401710597,1768341799350,-500.0,0.00012875,2]
[401710598,1768341799384,-500.0,0.00012875,2]
[401710599,1768341799418,-500.0,0.00012875,2]
[401710600,1768341838644,153.6,7.817e-05,2]
[401710601,1768341839034,175.54,8.107e-05,2]
[401710602,1768341839447,197.49,8.396e-05,2]
[401710603,1768341839844,219.43,8.686e-05,2]
[401710606,1768342097965,4891.9123691,0.00011876,2]
[401710619,1768342166431,223.23826672,0.00012303,2]
[401710620,1768342170654,892.06011383,0.00012303,2]
[401710670,1768342231745,-300.0,0.00012774,2]
[401710672,1768342231754,-601.0,0.00012774,2]
[401710674,1768342231764,-1200.0,0.00012774,2]
[401710676,1768342231781,-356.70028873,0.00012774,2]
[401710678,1768342231790,-120332.38588295,0.00012775,2]
[401710759,1768342238666,-4382.5499789,0.00012775,2]
[401710761,1768342238681,-9773.82003117,0.00012775,2]
[401710763,1768342238694,-394.48465797,0.00012775,2]
[401710765,1768342238708,-655.02568534,0.00012775,2]
[401710768,1768342238722,-2132.41304471,0.00012775,2]
[401710771,1768342238745,-4459.95641639,0.00012775,2]
[401710773,1768342238759,-1472.14861214,0.00012775,2]
[401711249,1768342244539,-177.1,0.00012329,2]
[401711253,1768342244555,-648.89471662,0.00012775,2]
[401711255,1768342244568,-5936.1147679,0.00012775,2]
[401711258,1768342244580,-14761.5931597,0.00012775,2]
[401711260,1768342244592,-47240.0,0.00012775,2]
[401711418,1768342246096,-3221.72403329,0.00012775,2]
[401711473,1768342246795,-43887.579222,0.00012775,2]
[401711480,1768342246862,-1057.116,0.00012775,2]
[401711482,1768342246874,-54030.24803273,0.00012775,2]
[401712498,1768342257908,500.0,0.00030136,120]
[401712531,1768342258226,-411.17568523,0.00012329,2]
[401712675,1768342259776,-474.32431477,0.00012329,2]
[401713292,1768342266293,500.0,0.00030136,120]
[401713420,1768342291585,606.87,0.00030136,120]
[401713423,1768342299504,500.0,0.00030136,120]
[401713425,1768342311286,166.66,0.00030136,120]
[401713426,1768342331475,500.0,0.00030136,120]
[401713427,1768342331788,155.31030298,0.00030136,120]
[401713428,1768342335843,-300.0,0.00012774,2]
[401713429,1768342335873,-300.0,0.00012774,2]
[401713430,1768342338832,5770.7278528,0.00011863,2]
[401713431,1768342340935,548.53226635,0.00030136,120]
[401713432,1768342350745,534.57875726,0.00030136,120]
[401713433,1768342368634,500.0,0.00030136,120]
[401713434,1768342368881,157.3,0.00030136,120]
[401713435,1768342375000,500.0,0.00030136,120]
[401713436,1768342381353,252.79070384,0.000127,2]
[401713437,1768342382615,300.0,0.00012774,2]
[401713438,1768342414601,300.0,0.00011875,2]
[401713439,1768342432345,512.03075381,0.00030136,120]
[401713440,1768342432550,556.06429041,0.00030136,120]
[401713441,1768342442882,300.0,0.00012774,2]
[401713442,1768342498776,619.07471667,0.00030136,120]
[401713443,1768342501221,300.0,0.00012774,2]
[401713444,1768342502296,630.8680054,0.00030136,120]
[401713445,1768342502469,300.0,0.00012774,2]
[401713446,1768342505232,1200.0,0.00012774,2]
[401713447,1768342512419,500.0,0.00030136,120]
[401713448,1768342516577,639.00300067,0.00030136,120]
[401713453,1768342558725,76.49144336,8.89e-05,2]
[401713454,1768342558756,97.51112384,8.89e-05,2]
[401713455,1768342562507,300.0,0.00012774,2]
[401713456,1768342566716,554.06949044,0.00030136,120]
[401713457,1768342574560,531.79360151,0.00030136,120]
[401713458,1768342580818,500.0,0.00030136,120]
[401713459,1768342581145,426.4082298,0.00030136,120]
[401713460,1768342590961,531.71379077,0.00030136,120]
[401713461,1768342598611,500.0,0.00030136,120]
[401713462,1768342607072,500.0,0.00012774,2]
[401713463,1768342607126,500.0,0.00012774,2]
[401713464,1768342607173,404.75028152,0.00012774,2]
[401713465,1768342608419,500.0,0.00012774,2]
[401713466,1768342608492,500.0,0.00012774,2]
[401713467,1768342608533,500.0,0.00012774,2]
[401713468,1768342608577,500.0,0.00012774,2]
[401713469,1768342608616,500.0,0.00012774,2]
[401713470,1768342608664,500.0,0.00012774,2]
[401713471,1768342608701,500.0,0.00012774,2]
[401713472,1768342608749,500.0,0.00012774,2]
[401713473,1768342608798,500.0,0.00012774,2]
[401713474,1768342608843,184.8930278,0.00012774,2]
[401713475,1768342618119,593.36307255,0.00030136,120]
[401713476,1768342618812,522.67545062,0.00012774,2]
[401713477,1768342618850,522.67545062,0.00012774,2]
[401713478,1768342618884,522.67545062,0.00012774,2]
[401713479,1768342618922,522.67545062,0.00012774,2]
[401713480,1768342618964,522.67545062,0.00012774,2]
[401713481,1768342619004,522.67545062,0.00012774,2]
[401713482,1768342619043,376.80286312,0.00012774,2]
[401713483,1768342619073,145.8725875,0.00012774,2]
[401713484,1768342619124,522.67545062,0.00012774,2]
[401713485,1768342619321,522.67545062,0.00012774,2]
[401713486,1768342619405,522.67545062,0.00012774,2]
[401713487,1768342619442,522.67545062,0.00012774,2]
[401713488,1768342619508,522.67545062,0.00012774,2]
[401713489,1768342619607,522.67545062,0.00012774,2]
[401713490,1768342619735,522.67545062,0.00012774,2]
[401713491,1768342619835,522.67545062,0.00012774,2]
[401713492,1768342619874,522.67545062,0.00012774,2]
[401713493,1768342620327,522.67545062,0.00012774,2]
[401713494,1768342622533,300.0,0.00012774,2]
[401713495,1768342623848,980.01646991,0.00012774,2]
[401713496,1768342623885,980.01646991,0.00012774,2]
[401713497,1768342623926,980.01646991,0.00012774,2]
[401713498,1768342623974,980.01646991,0.00012774,2]
[401713499,1768342624015,407.31702666,0.00012774,2]
[401713500,1768342624045,572.69944325,0.00012774,2]
[401713501,1768342624438,980.01646991,0.00012774,2]
[401713502,1768342624563,980.01646991,0.00012774,2]
[401713503,1768342627390,465.12037781,0.00012774,2]
[401713504,1768342629065,543.30081817,0.00030136,120]
[401713505,1768342636782,215.60362329,0.00012774,2]
[401713506,1768342682402,300.0,0.00012774,2]
[401713507,1768342705371,500.0,0.00012774,2]
[401713508,1768342705406,500.0,0.00012774,2]
[401713509,1768342705441,500.0,0.00012774,2]
[401713510,1768342705476,500.0,0.00012774,2]
[401713511,1768342705511,500.0,0.00012774,2]
[401713512,1768342705544,202.23256304,0.00012687,2]
[401713513,1768342705579,500.0,0.00012774,2]
[401713514,1768342705616,500.0,0.00012774,2]
[401713515,1768342705651,500.0,0.00012774,2]
[401713516,1768342705686,500.0,0.00012774,2]
[401713517,1768342705722,500.0,0.00012774,2]
[401713518,1768342705898,500.0,0.00012774,2]
[401713519,1768342705935,500.0,0.00012774,2]
[401713520,1768342705971,284.32105279,0.00012774,2]
[401713521,1768342705998,215.67894721,0.00012774,2]
[401713522,1768342706037,500.0,0.00012774,2]
[401713523,1768342706072,500.0,0.00012774,2]
[401713524,1768342706107,500.0,0.00012774,2]
[401713525,1768342706146,500.0,0.00012774,2]
[401713526,1768342706181,500.0,0.00012774,2]
[401713527,1768342706220,500.0,0.00012774,2]
[401713528,1768342706256,500.0,0.00012774,2]
[401713529,1768342706292,500.0,0.00012774,2]
[401713530,1768342706329,500.0,0.00012774,2]
[401713531,1768342706365,500.0,0.00012774,2]
[401713532,1768342706400,500.0,0.00012774,2]
[401713533,1768342706435,500.0,0.00012774,2]
[401713534,1768342706472,500.0,0.00012774,2]
[401713535,1768342706532,500.0,0.00012774,2]
[401713536,1768342706566,500.0,0.00012774,2]
[401713537,1768342706599,500.0,0.00012774,2]
[401713538,1768342706634,500.0,0.00012774,2]
[401713539,1768342706668,500.0,0.00012774,2]
[401713540,1768342706705,500.0,0.00012774,2]
[401713541,1768342706744,284.33105279,0.00012774,2]
[401713542,1768342706769,215.66894721,0.00012774,2]
[401713543,1768342706802,500.0,0.00012774,2]
[401713544,1768342706834,500.0,0.00012774,2]
[401713545,1768342706867,500.0,0.00012774,2]
[401713546,1768342706900,500.0,0.00012774,2]
[401713547,1768342706934,500.0,0.00012774,2]
[401713548,1768342706986,500.0,0.00012774,2]
[401713549,1768342707024,216.78088438,0.00012774,2]
[401713550,1768342717819,535.04476862,0.00030136,120]
[401713551,1768342734756,500.0,0.00012774,2]
[401713552,1768342734793,500.0,0.00012774,2]
[401713553,1768342734829,500.0,0.00012774,2]
[401713554,1768342734870,500.0,0.00012774,2]
[401713555,1768342734905,500.0,0.00012774,2]
[401713556,1768342734940,436.90728766,0.00012774,2]
[401713557,1768342742412,300.0,0.00012774,2]
[401713558,1768342742832,500.0,0.00012774,2]
[401713559,1768342743032,500.0,0.00012774,2]
[401713560,1768342743073,500.0,0.00012774,2]
[401713561,1768342743112,500.0,0.00012774,2]
[401713562,1768342743159,500.0,0.00012774,2]
[401713563,1768342743196,500.0,0.00012774,2]
[401713564,1768342743235,500.0,0.00012774,2]
[401713565,1768342743272,500.0,0.00012774,2]
[401713566,1768342743308,500.0,0.00012774,2]
[401713567,1768342743345,500.0,0.00012774,2]
[401713568,1768342743380,500.0,0.00012774,2]
[401713569,1768342743419,500.0,0.00012774,2]
[401713570,1768342743456,500.0,0.00012774,2]
[401713571,1768342743524,263.10271234,0.00012774,2]
[401713572,1768342743552,236.89728766,0.00012774,2]
[401713573,1768342743587,500.0,0.00012774,2]
[401713574,1768342743622,500.0,0.00012774,2]
[401713575,1768342743658,500.0,0.00012774,2]
[401713576,1768342743696,500.0,0.00012774,2]
[401713577,1768342796916,1501.834117,0.00012135,2]
[401713578,1768342802001,300.0,0.00012774,2]
[401713579,1768342816920,1500.0,0.00012135,2]
[401713580,1768342862505,300.0,0.00012774,2]
[401713581,1768342884463,500.0,0.00012774,2]
[401713582,1768342884531,500.0,0.00012774,2]
[401713583,1768342884574,500.0,0.00012774,2]
[401713584,1768342884648,500.0,0.00012774,2]
[401713585,1768342884690,371.67808844,0.00012774,2]
[401713586,1768342893984,326.32303196,0.00012774,2]
[401713587,1768342899232,561.43539103,0.00012774,2]
[401713588,1768342909599,500.0,0.00012774,2]
[401713589,1768342909653,500.0,0.00012774,2]
[401713590,1768342909701,500.0,0.00012774,2]
[401713591,1768342909755,500.0,0.00012774,2]
[401713592,1768342909814,500.0,0.00012774,2]
[401713593,1768342909996,571.57924656,0.00012774,2]
[401713595,1768342912340,67.16012501,0.00011826,2]
[401713596,1768342912367,931.83987499,0.00011826,2]
[401713597,1768342919062,500.0,0.00012774,2]
[401713598,1768342919099,500.0,0.00012774,2]
[401713599,1768342919135,500.0,0.00012774,2]
[401713600,1768342919170,500.0,0.00012774,2]
[401713601,1768342919206,643.5638264,0.00012774,2]
[401713602,1768342919243,500.0,0.00012774,2]
[401713603,1768342919278,500.0,0.00012774,2]
[401713604,1768342919316,500.0,0.00012774,2]
[401713605,1768342919353,500.0,0.00012774,2]
[401713606,1768342919392,500.0,0.00012774,2]
[401713607,1768342919467,500.0,0.00012774,2]
[401713608,1768342919503,500.0,0.00012774,2]
[401713609,1768342919539,500.0,0.00012774,2]
[401713610,1768342919580,500.0,0.00012774,2]
[401713611,1768342919618,500.0,0.00012774,2]
[401713612,1768342919704,500.0,0.00012774,2]
[401713613,1768342919741,500.0,0.00012774,2]
[401713614,1768342919782,424.60629861,0.00012774,2]
[401713615,1768342919809,75.39370139,0.00012774,2]
[401713616,1768342919844,500.0,0.00012774,2]
[401713617,1768342919878,500.0,0.00012774,2]
[401713618,1768342920101,500.0,0.00012774,2]
[401713619,1768342920139,500.0,0.00012774,2]
[401713620,1768342920200,500.0,0.00012774,2]
[401713621,1768342920324,500.0,0.00012774,2]
[401713622,1768342920371,500.0,0.00012774,2]
[401713623,1768342922436,300.0,0.00012774,2]
[401713624,1768342928381,500.0,0.00012774,2]
[401713625,1768342928435,500.0,0.00012774,2]
[401713626,1768342928491,500.0,0.00012774,2]
[401713627,1768342928544,300.0,0.00012774,2]
[401713633,1768343042783,300.0,0.00012774,2]
[401713634,1768343065844,263.5197876,0.00012774,2]
[401713635,1768343074374,393.00477372,0.00012774,2]
[401713636,1768343083069,341.28658295,0.00012774,2]
[401713637,1768343087871,500.0,0.00012774,2]
[401713638,1768343087943,500.0,0.00012774,2]
[401713639,1768343087978,644.35638264,0.00012774,2]
[401713640,1768343102458,300.0,0.00012774,2]
[401713641,1768343108207,520.54366976,0.00012774,2]
[401713642,1768343122229,500.0,0.00012774,2]
[401713643,1768343122285,61.90510194,0.00012774,2]
[401713644,1768343122320,438.09489806,0.00012774,2]
[401713645,1768343122473,500.0,0.00012774,2]
[401713646,1768343122516,500.0,0.00012774,2]
[401713647,1768343122555,500.0,0.00012774,2]
[401713648,1768343122812,500.0,0.00012774,2]
[401713649,1768343122950,500.0,0.00012774,2]
[401713650,1768343123261,500.0,0.00012774,2]
[401713651,1768343123690,500.0,0.00012774,2]
[401713652,1768343123839,500.0,0.00012774,2]
[401713653,1768343123888,500.0,0.00012774,2]
[401713654,1768343140065,500.0,0.00012774,2]
[401713655,1768343140106,417.57091396,0.00012774,2]
[401713656,1768343140193,500.0,0.00012774,2]
[401713657,1768343140629,500.0,0.00012774,2]
[401713658,1768343140729,500.0,0.00012774,2]
[401713659,1768343140883,500.0,0.00012774,2]
[401713660,1768343140924,500.0,0.00012774,2]
[401713661,1768343141030,500.0,0.00012774,2]
[401713663,1768343147599,1144.34418798,0.00012675,2]
[401713664,1768343147630,10000.01,0.00012675,2]
[401713665,1768343147660,10000.01,0.00012675,2]
[401713666,1768343147690,10000.01,0.00012675,2]
[401713667,1768343147723,10000.01,0.00012675,2]
[401713668,1768343147754,10000.01,0.00012675,2]
[401713669,1768343147785,10000.01,0.00012675,2]
[401713670,1768343147815,10000.01,0.00012675,2]
[401713671,1768343147848,10000.01,0.00012675,2]
[401713672,1768343147877,10000.01,0.00012675,2]
[401713673,1768343157472,150.79324993,0.00027,120]
[401713674,1768343174570,-300.0,0.00012674,2]
[401713675,1768343176674,-156.33034166,0.00012675,2]
[401713676,1768343178335,-300.0,0.00012675,2]
[401713677,1768343179862,-617.3028231,0.00012675,2]
[401713678,1768343240757,500.0,0.00012674,2]
[401713679,1768343241159,436.13554963,0.00012674,2]
[401713681,1768343247245,375.56095827,0.00012674,2]
[401713682,1768343247542,500.0,0.00012674,2]
[401713683,1768343247867,500.0,0.00012674,2]
[401713684,1768343248605,500.0,0.00012674,2]
[401713685,1768343248659,500.0,0.00012674,2]
[401713686,1768343248696,285.79110745,0.00012674,2]
[401713687,1768343248736,500.0,0.00012674,2]
[401713688,1768343248779,500.0,0.00012674,2]
[401713689,1768343248817,500.0,0.00012674,2]
[401713690,1768343248864,500.0,0.00012674,2]
[401713691,1768343248912,500.0,0.00012674,2]
[401713692,1768343248977,500.0,0.00012674,2]
[401713693,1768343249039,500.0,0.00012674,2]
[401713694,1768343249086,500.0,0.00012674,2]
[401713695,1768343249165,500.0,0.00012674,2]
[401713696,1768343249256,500.0,0.00012674,2]
[401713697,1768343249310,500.0,0.00012674,2]
[401713698,1768343249397,302.52238465,0.00012674,2]
[401713699,1768343249436,197.47761535,0.00012674,2]
[401713700,1768343249622,500.0,0.00012674,2]
[401713701,1768343252902,500.0,0.00012674,2]
[401713702,1768343252942,500.0,0.00012674,2]
[401713703,1768343252982,500.0,0.00012674,2]
[401713704,1768343253017,155.93272251,0.00012674,2]
[401713705,1768343253058,500.0,0.00012674,2]
[401713706,1768343253102,500.0,0.00012674,2]
[401713707,1768343253140,500.0,0.00012674,2]
[401713708,1768343253178,523.93351835,0.00012674,2]
[401713709,1768343253219,500.0,0.00012674,2]
[401713710,1768343253264,500.0,0.00012674,2]
[401713711,1768343253308,500.0,0.00012674,2]
[401713712,1768343253350,505.02772207,0.00012674,2]
[401713713,1768343253391,500.0,0.00012674,2]
[401713714,1768343253431,500.0,0.00012674,2]
[401713715,1768343253481,500.0,0.00012674,2]
[401713716,1768343253525,500.0,0.00012674,2]
[401713717,1768343253564,500.0,0.00012674,2]
[401713718,1768343253603,500.0,0.00012674,2]
[401713719,1768343253648,500.0,0.00012674,2]
[401713720,1768343253685,117.63842172,0.00012674,2]
[401713721,1768343253713,382.36157828,0.00012674,2]
[401713722,1768343253749,500.0,0.00012674,2]
[401713723,1768343253785,500.0,0.00012674,2]
[401713724,1768343253821,500.0,0.00012674,2]
[401713725,1768343253858,500.0,0.00012674,2]
[401713726,1768343253895,500.0,0.00012674,2]
[401713727,1768343253936,500.0,0.00012674,2]
[401713728,1768343253974,500.0,0.00012674,2]
[401713729,1768343254009,500.0,0.00012674,2]
[401713730,1768343254044,329.90651669,0.00012674,2]
[401713731,1768343254081,500.0,0.00012674,2]
[401713732,1768343254117,500.0,0.00012674,2]
[401713733,1768343254152,500.0,0.00012674,2]
[401713734,1768343254188,500.0,0.00012674,2]
[401713735,1768343254224,453.96569836,0.00012674,2]
[401713736,1768343254260,414.43563827,0.00012674,2]
[401713737,1768343254298,500.0,0.00012674,2]
[401713738,1768343254342,500.0,0.00012674,2]
[401713739,1768343254380,500.0,0.00012674,2]
[401713740,1768343254419,500.0,0.00012674,2]
[401713741,1768343254474,419.3405684,0.00012674,2]
[401713742,1768343254789,-80.6594316,0.00012674,2]
[401713743,1768343254823,-500.0,0.00012674,2]
[401713744,1768343254857,-500.0,0.00012674,2]
[401713745,1768343254892,-500.0,0.00012674,2]
[401713746,1768343254925,-500.0,0.00012674,2]
[401713747,1768343254963,-500.0,0.00012674,2]
[401713748,1768343254998,-500.0,0.00012674,2]
[401713749,1768343255031,-500.0,0.00012674,2]
[401713750,1768343255065,-500.0,0.00012674,2]
[401713751,1768343255103,-500.0,0.00012674,2]
[401713752,1768343255138,-338.6911368,0.00012674,2]
[401713755,1768343257017,-161.3088632,0.00012674,2]
[401713756,1768343257051,-500.0,0.00012674,2]
[401713757,1768343257084,-500.0,0.00012674,2]
[401713758,1768343257117,-500.0,0.00012674,2]
[401713759,1768343257150,-500.0,0.00012674,2]
[401713760,1768343257182,-500.0,0.00012674,2]
[401713761,1768343257216,-500.0,0.00012674,2]
[401713762,1768343257252,-500.0,0.00012674,2]
[401713763,1768343257287,-616.9308393,0.00012674,2]
[401713764,1768343257322,-500.0,0.00012674,2]
[401713769,1768343306141,392.8043837,0.0001,7]
[401713790,1768343374413,220.4925967,0.00012243,2]
[401713791,1768343385260,536.75574529,9.5e-05,2]
[401713792,1768343420077,300.4281408,0.00011686,2]
[401713915,1768343437174,-418.88,0.000126,2]
[401713916,1768343437184,-81.12,0.000126,2]
[401713917,1768343437232,-516.88,0.000126,2]
[401713918,1768343437242,-180.69597575,0.00012624,2]
[401713919,1768343437252,-300.0,0.00012673,2]
[401713920,1768343437261,-500.0,0.00012674,2]
[401713921,1768343437271,-500.0,0.00012674,2]
[401713922,1768343437281,-500.0,0.00012674,2]
[401713923,1768343437291,-402.01614254,0.00012674,2]
[401713924,1768343437300,-14327.37476501,0.00012675,2]
[401713992,1768343438237,-326.21123893,0.00012675,2]
[401714000,1768343438306,-9902.15284415,0.00012675,2]
[401714002,1768343438319,-50449.34794586,0.00012675,2]
[401714008,1768343438375,-6682.4868,0.00012675,2]
[401714010,1768343438387,-3197.18973189,0.00012675,2]
[401714013,1768343438399,-36466.75229328,0.00012675,2]
[401714015,1768343438413,-79859.51707325,0.00012675,2]
[401714017,1768343438425,-138728.5660041,0.00012675,2]
[401714576,1768343443918,-1095.21043255,0.00012675,2]
[401714578,1768343443928,-262.0624995,0.00012675,2]
[401714580,1768343443939,-47730.0,0.00012675,2]
[401714582,1768343443950,-833.04069249,0.00012675,2]
[401714747,1768343445611,-2283.9466,0.00012675,2]
[401715105,1768343449030,-16508.27614654,0.00012675,2]
[401715107,1768343449041,-13082.88450738,0.00012675,2]
[401715109,1768343449052,-569.37999998,0.00012675,2]
[401715111,1768343449063,-595.55161687,0.00012675,2]
[401715114,1768343449075,-1610.19785751,0.00012675,2]
[401715116,1768343449086,-1378.62418136,0.00012675,2]
[401715118,1768343449098,-498.90421279,0.00012675,2]
[401715120,1768343449109,-419.18467264,0.00012675,2]
[401715122,1768343449122,-3055.82760748,0.00012675,2]
[401716516,1768343566171,269.16307117,0.00012243,2]
[401716517,1768343569353,1075.57563241,0.00012243,2]
[401716518,1768343616405,-3029.07334931,0.00012588,2]
[401716519,1768343616441,-300.0,0.00012673,2]
[401716520,1768343642244,300.0,0.00012672,2]
[401716521,1768343702494,300.0,0.00012672,2]
[401716522,1768343706019,1200.0,0.00012672,2]
[401716523,1768343709718,1541.86330138,0.00012673,2]
[401716524,1768343709745,688.45200462,0.00012673,2]
[401716525,1768343710275,181.62823332,0.00012673,2]
[401716526,1768343710919,461.67526834,0.00012673,2]
[401716527,1768343711039,1499.99999997,0.00012673,2]
[401716528,1768343726253,-500.0,0.00012672,2]
[401716529,1768343726299,-425.54516852,0.00012672,2]
[401716530,1768343726345,-268.27062647,0.00012672,2]
[401716531,1768343726404,-500.0,0.00012672,2]
[401716532,1768343726444,-500.0,0.00012672,2]
[401716533,1768343726485,-500.0,0.00012672,2]
[401716534,1768343726544,-383.77396649,0.00012672,2]
[401716535,1768343726583,-500.0,0.00012672,2]
[401716536,1768343726623,-500.0,0.00012672,2]
[401716537,1768343726662,-500.0,0.00012672,2]
[401716538,1768343726700,-344.83047704,0.00012672,2]
[401716539,1768343726888,-155.16952296,0.00012672,2]
[401716540,1768343726925,-500.0,0.00012672,2]
[401716541,1768343726960,-500.0,0.00012672,2]
[401716542,1768343726993,-197.43501721,0.00012672,2]
[401716543,1768343727026,-500.0,0.00012672,2]
[401716544,1768343727058,-500.0,0.00012672,2]
[401716545,1768343727092,-500.0,0.00012672,2]
[401716546,1768343727125,-500.0,0.00012672,2]
[401716547,1768343727158,-500.0,0.00012672,2]
[401716548,1768343727191,-500.0,0.00012672,2]
[401716549,1768343727225,-500.0,0.00012672,2]
[401716550,1768343727350,-500.0,0.00012672,2]
[401716551,1768343727382,-205.84,0.00012673,2]
[401716552,1768343727415,-168.3888056,0.00012673,2]
[401716553,1768343727581,-174.61919141,0.00012673,2]
[401716554,1768343727617,-151.0,0.00012673,2]
[401716555,1768343727654,-181.08010149,0.00012673,2]
[401716556,1768343727688,-151.0,0.00012673,2]
[401716557,1768343727721,-187.78006525,0.00012673,2]
[401716558,1768343727754,-194.72792766,0.00012673,2]
[401716559,1768343727786,-151.0,0.00012673,2]
[401716560,1768343727820,-201.93286099,0.00012673,2]
[401716561,1768343727852,-151.0,0.00012673,2]
[401716562,1768343727886,-209.40437684,0.00012673,2]
[401716563,1768343727918,-151.0,0.00012673,2]
[401716564,1768343727950,-217.15233878,0.00012673,2]
[401716565,1768343727983,-151.0,0.00012673,2]
[401716566,1768343728015,-225.18697532,0.00012673,2]
[401716567,1768343728046,-224.05743524,0.00012673,2]
[401716568,1768343728079,-233.51889341,0.00012673,2]
[401716569,1768343728114,-242.15909246,0.00012673,2]
[401716570,1768343728150,-251.11897888,0.00012673,2]
[401716571,1768343728182,-260.4103811,0.00012673,2]
[401716572,1768343728215,-270.0455652,0.00012673,2]
[401716573,1768343728248,-13.12676962,0.00012673,2]
[401716574,1768343729399,-266.9104815,0.00012673,2]
[401716575,1768343729439,-290.39862941,0.00012673,2]
[401716576,1768343729475,-301.1433787,0.00012673,2]
[401716577,1768343729513,-2030.296672,0.00012673,2]
[401716578,1768343732175,-4866.4448601,0.00012673,2]
[401716579,1768343732290,-10000.01,0.00012673,2]
[401716580,1768343765907,-228.8385003,0.00012573,2]
[401716605,1768343811497,-300.0,0.00012672,2]
[401716606,1768343822760,300.0,0.00012672,2]
[401716650,1768343882810,300.0,0.00012672,2]
[401716651,1768343944172,500.0,0.00012672,2]
[401716652,1768343944248,558.74749887,0.00012672,2]
[401716653,1768343946130,300.0,0.00012672,2]
[401716654,1768343984869,1669.38535066,0.00012432,7]
[401716655,1768343994626,-416.68062683,0.00012673,2]
[401716656,1768343994791,-5538.51589681,0.00012674,2]
[401716657,1768343994864,-2307.38919035,0.00012674,2]
[401716658,1768343994929,-5385.2316193,0.00012674,2]
[401716659,1768343995017,-500.0,0.00012674,2]
[401716660,1768343995080,-500.0,0.00012674,2]